fUSD/lending_fUSD_20251109
["ID","MTS","AMOUNT","RATE_DAILY","PERIOD"]
[393433122,1762656942984,336.99346467,0.00039115,120]
[393433123,1762656946628,173.63539875,0.00039115,120]
[393433124,1762656947050,622.59594285,0.00039115,120]
[393433125,1762656948258,613.58208409,0.00039115,120]
[393433126,1762656948525,158.97535603,0.00039115,120]
[393433127,1762656948815,500.0,0.00039115,120]
[393433128,1762656949188,150.32579201,0.00039115,120]
[393433129,1762656949239,183.05909098,0.00039115,120]
[393433130,1762656950930,500.0,0.00039115,120]
[393433131,1762656951205,500.0,0.00039115,120]
[393433132,1762656951450,500.0,0.00039115,120]
[393433133,1762656951717,500.0,0.00039115,120]
[393433134,1762656951951,500.0,0.00039115,120]
[393433135,1762656952024,500.0,0.00039115,120]
[393433136,1762656952182,598.27234577,0.00039115,120]
[393433137,1762656952274,500.0,0.00039115,120]
[393433138,1762656952906,338.10471329,0.00039115,120]
[393433139,1762656954419,500.0,0.00039115,120]
[393433140,1762656954658,210.842462,0.00039115,120]
[393433141,1762656957476,230.00602163,0.00039115,120]
[393433142,1762656957508,232.0,0.00016656,2]
[393433143,1762656958622,500.0,0.00039115,120]
[393433144,1762656958891,500.0,0.00039115,120]
[393433145,1762656959139,433.2198908,0.00039115,120]
[393433146,1762656962413,232.0,0.00016507,2]
[393433147,1762656965609,290.46672647,0.00039115,120]
[393433148,1762656965951,500.0,0.00039115,120]
[393433149,1762656966182,160.10865873,0.00039115,120]
[393433150,1762656969185,310.15468644,0.00039115,120]
[393433151,1762656969237,500.0,0.00039115,120]
[393433152,1762656969425,500.0,0.00039115,120]
[393433153,1762656969666,500.0,0.00039115,120]
[393433154,1762656969922,500.0,0.00039115,120]
[393433155,1762656970152,415.44219972,0.00039115,120]
[393433156,1762656970228,500.0,0.00039115,120]
[393433157,1762656970458,500.0,0.00039115,120]
[393433158,1762656970695,500.0,0.00039115,120]
[393433159,1762656970937,500.0,0.00039115,120]
[393433160,1762656971183,598.97368223,0.00039115,120]
[393433161,1762656973567,500.0,0.00039115,120]
[393433162,1762656973812,400.76884915,0.00039115,120]
[393433163,1762656976849,500.0,0.00039115,120]
[393433164,1762656977123,500.0,0.00039115,120]
[393433165,1762656977366,330.14670339,0.00039115,120]
[393433166,1762656977639,598.42701589,0.00039115,120]
[393433167,1762656978621,568.66558975,0.00039115,120]
[393433168,1762656982504,500.0,0.00039115,120]
[393433169,1762656982738,500.0,0.00039115,120]
[393433170,1762656982969,500.0,0.00039115,120]
[393433171,1762656983546,500.0,0.00039115,120]
[393433172,1762656983700,500.0,0.00039115,120]
[393433173,1762656983789,500.0,0.00039115,120]
[393433174,1762656984024,231.52748679,0.00039115,120]
[393433175,1762656984075,500.0,0.00039115,120]
[393433176,1762656984250,432.64731206,0.00039115,120]
[393433177,1762656985464,182.37494637,0.00039115,120]
[393433178,1762656985886,611.98450347,0.00039115,120]
[393433179,1762656988146,500.0,0.00039115,120]
[393433180,1762656988419,500.0,0.00039115,120]
[393433181,1762656988668,500.0,0.00039115,120]
[393433182,1762656988906,500.0,0.00039115,120]
[393433183,1762656989362,500.0,0.00039115,120]
[393433184,1762656989423,500.0,0.00039115,120]
[393433185,1762656989652,500.0,0.00039115,120]
[393433186,1762656989976,500.0,0.00039115,120]
[393433187,1762656990204,500.0,0.00039115,120]
[393433188,1762656990254,282.96211126,0.00039115,120]
[393433189,1762656990440,500.0,0.00039115,120]
[393433190,1762656990670,197.52,0.00039115,120]
[393433191,1762656991129,500.0,0.00039115,120]
[393433192,1762656991373,500.0,0.00039115,120]
[393433193,1762656991742,500.0,0.00039115,120]
[393433194,1762656991998,500.0,0.00039115,120]
[393433195,1762656992053,164.08444946,0.00039115,120]
[393433196,1762656992266,500.0,0.00039115,120]
[393433197,1762656992516,500.0,0.00039115,120]
[393433198,1762656992755,500.0,0.00039115,120]
[393433199,1762656993142,500.0,0.00039115,120]
[393433200,1762656993230,500.0,0.00039115,120]
[393433201,1762656993641,500.0,0.00039115,120]
[393433202,1762656993767,647.58854477,0.00039115,120]
[393433203,1762656993815,500.0,0.00039115,120]
[393433204,1762656994002,594.23407328,0.00039115,120]
[393433205,1762656994075,453.02957149,0.00039115,120]
[393433206,1762656995565,500.0,0.00039115,120]
[393433207,1762656995691,500.0,0.00039115,120]
[393433208,1762656995822,500.0,0.00039115,120]
[393433209,1762656995958,226.23391218,0.00039115,120]
[393433210,1762656996239,500.0,0.00039115,120]
[393433211,1762656996442,500.0,0.00039115,120]
[393433212,1762656996508,500.0,0.00039115,120]
[393433213,1762656996677,500.0,0.00039115,120]
[393433214,1762656996740,500.0,0.00039115,120]
[393433215,1762656996902,500.0,0.00039115,120]
[393433216,1762656996962,500.0,0.00039115,120]
[393433217,1762656997132,500.0,0.00039115,120]
[393433218,1762656997244,500.0,0.00039115,120]
[393433219,1762656997384,500.0,0.00039115,120]
[393433220,1762656997442,500.0,0.00039115,120]
[393433221,1762656997504,505.32764694,0.00039115,120]
[393433222,1762656997613,500.0,0.00039115,120]
[393433223,1762656997672,500.0,0.00039115,120]
[393433224,1762656997856,500.0,0.00039115,120]
[393433225,1762656997916,500.0,0.00039115,120]
[393433226,1762656998120,500.0,0.00039115,120]
[393433227,1762656998177,500.0,0.00039115,120]
[393433228,1762656998258,184.97532362,0.00039115,120]
[393433229,1762656998364,500.0,0.00039115,120]
[393433230,1762656998427,523.96089723,0.00039115,120]
[393433231,1762656998629,500.0,0.00039115,120]
[393433232,1762656998871,500.0,0.00039115,120]
[393433233,1762656999073,500.0,0.00039115,120]
[393433234,1762656999131,500.0,0.00039115,120]
[393433235,1762656999320,500.0,0.00039115,120]
[393433236,1762656999608,500.0,0.00039115,120]
[393433237,1762656999661,500.0,0.00039115,120]
[393433238,1762656999711,237.04256737,0.00039115,120]
[393433239,1762656999811,500.0,0.00039115,120]
[393433240,1762656999972,1972.236,0.00039115,60]
[393433241,1762657000045,205.20380493,0.00039115,120]
[393433242,1762657000141,373.67863134,0.00039115,120]
[393433243,1762657001421,500.0,0.00039115,120]
[393433244,1762657001686,500.0,0.00039115,120]
[393433245,1762657001962,500.0,0.00039115,120]
[393433246,1762657002053,501.25,0.00039115,120]
[393433247,1762657002208,500.0,0.00039115,120]
[393433248,1762657002292,501.25,0.00039115,120]
[393433249,1762657002442,500.0,0.00039115,120]
[393433250,1762657002536,501.25,0.00039115,120]
[393433251,1762657002693,500.0,0.00039115,120]
[393433252,1762657002774,501.25,0.00039115,120]
[393433253,1762657002957,500.0,0.00039115,120]
[393433254,1762657003011,501.25,0.00039115,120]
[393433255,1762657003213,500.0,0.00039115,120]
[393433256,1762657003376,501.25,0.00039115,120]
[393433257,1762657003482,500.0,0.00039115,120]
[393433258,1762657003641,501.25,0.00039115,120]
[393433259,1762657003747,610.76,0.00039115,120]
[393433260,1762657003876,501.25,0.00039115,120]
[393433261,1762657004144,501.25,0.00039115,120]
[393433262,1762657004381,501.25,0.00039115,120]
[393433263,1762657004634,501.25,0.00039115,120]
[393433264,1762657004874,501.25,0.00039115,120]
[393433265,1762657005140,501.25,0.00039115,120]
[393433266,1762657005373,501.25,0.00039115,120]
[393433267,1762657005613,501.25,0.00039115,120]
[393433268,1762657005856,501.25,0.00039115,120]
[393433269,1762657006092,638.93884285,0.00039115,120]
[393433270,1762657006147,501.25,0.00039115,120]
[393433271,1762657006347,501.25,0.00039115,120]
[393433272,1762657007077,501.25,0.00039115,120]
[393433273,1762657007253,500.0,0.00039115,120]
[393433274,1762657007377,501.25,0.00039115,120]
[393433275,1762657007520,163.86059041,0.00039115,120]
[393433276,1762657007616,501.25,0.00039115,120]
[393433277,1762657007870,638.65625693,0.00039115,120]
[393433278,1762657007976,501.25,0.00039115,120]
[393433279,1762657008069,573.17149638,0.00039115,120]
[393433280,1762657008121,501.25,0.00039115,120]
[393433281,1762657008323,501.30582811,0.00039115,120]
[393433282,1762657010021,590.59699758,0.00039115,120]
[393433283,1762657011179,500.0,0.00039115,120]
[393433284,1762657011418,500.0,0.00039115,120]
[393433285,1762657011632,500.0,0.00039115,120]
[393433286,1762657011681,500.0,0.00039115,120]
[393433287,1762657011854,258.32834843,0.00039115,120]
[393433288,1762657011900,500.0,0.00039115,120]
[393433289,1762657012038,241.0553694,0.00039115,120]
[393433290,1762657012096,500.0,0.00039115,120]
[393433291,1762657012352,500.0,0.00039115,120]
[393433292,1762657012583,500.0,0.00039115,120]
[393433293,1762657012813,500.0,0.00039115,120]
[393433294,1762657012862,156.5050818,0.00039115,120]
[393433295,1762657013033,610.21722117,0.00039115,120]
[393433296,1762657013080,500.0,0.00039115,120]
[393433297,1762657013340,500.0,0.00039115,120]
[393433298,1762657013616,500.0,0.00039115,120]
[393433299,1762657013711,500.0,0.00039115,120]
[393433300,1762657013875,500.0,0.00039115,120]
[393433301,1762657013959,500.0,0.00039115,120]
[393433302,1762657014154,500.0,0.00039115,120]
[393433303,1762657014210,500.0,0.00039115,120]
[393433304,1762657014393,500.0,0.00039115,120]
[393433305,1762657014452,500.0,0.00039115,120]
[393433306,1762657014639,500.0,0.00039115,120]
[393433307,1762657014686,500.0,0.00039115,120]
[393433308,1762657014893,396.28876641,0.00039115,120]
[393433309,1762657014943,500.0,0.00039115,120]
[393433310,1762657015163,500.0,0.00039115,120]
[393433311,1762657015262,500.0,0.00039115,120]
[393433312,1762657015400,618.67097884,0.00039115,120]
[393433313,1762657015507,224.8593255,0.00039115,120]
[393433314,1762657017600,164.59967349,0.00039115,120]
[393433315,1762657018903,204.28755201,0.00039115,120]
[393433316,1762657019719,500.0,0.00039115,120]
[393433317,1762657019795,500.0,0.00039115,120]
[393433318,1762657020221,500.0,0.00039115,120]
[393433319,1762657020267,363.91578529,0.00039115,120]
[393433320,1762657020311,500.0,0.00039115,120]
[393433321,1762657020359,227.46,0.00039115,120]
[393433322,1762657020408,500.0,0.00039115,120]
[393433323,1762657020573,500.0,0.00039115,120]
[393433324,1762657020621,500.0,0.00039115,120]
[393433325,1762657020813,500.0,0.00039115,120]
[393433326,1762657020862,562.58639989,0.00039115,120]
[393433327,1762657020912,500.0,0.00039115,120]
[393433328,1762657021051,500.0,0.00039115,120]
[393433329,1762657021147,500.0,0.00039115,120]
[393433330,1762657021295,500.0,0.00039115,120]
[393433331,1762657021388,500.0,0.00039115,120]
[393433332,1762657021531,500.0,0.00039115,120]
[393433333,1762657021679,500.0,0.00039115,120]
[393433334,1762657021869,182.03015871,0.00039115,120]
[393433335,1762657021946,500.0,0.00039115,120]
[393433336,1762657022052,500.0,0.00039115,120]
[393433337,1762657022183,415.47998675,0.00039115,120]
[393433338,1762657022284,500.0,0.00039115,120]
[393433339,1762657022473,500.0,0.00039115,120]
[393433340,1762657022532,500.0,0.00039115,120]
[393433341,1762657022707,500.0,0.00039115,120]
[393433342,1762657022761,318.03949634,0.00039115,120]
[393433343,1762657022869,500.0,0.00039115,120]
[393433344,1762657022951,500.0,0.00039115,120]
[393433345,1762657023117,500.0,0.00039115,120]
[393433346,1762657023283,172.87450727,0.00039115,120]
[393433347,1762657023354,500.0,0.00039115,120]
[393433348,1762657023579,547.64280895,0.00039115,120]
[393433349,1762657024360,500.0,0.00039115,120]
[393433350,1762657024407,500.0,0.00039115,120]
[393433351,1762657024592,160.9803674,0.00039115,120]
[393433352,1762657024641,500.0,0.00039115,120]
[393433353,1762657024884,347.43890676,0.00039115,120]
[393433354,1762657025778,158.50153017,0.00039115,120]
[393433355,1762657026800,500.0,0.00039115,120]
[393433356,1762657027063,500.0,0.00039115,120]
[393433357,1762657027299,500.0,0.00039115,120]
[393433358,1762657027494,451.92,0.00016523,2]
[393433359,1762657027543,500.0,0.00039115,120]
[393433360,1762657027712,500.0,0.00039115,120]
[393433361,1762657027766,500.0,0.00039115,120]
[393433362,1762657027952,500.0,0.00039115,120]
[393433363,1762657028002,500.0,0.00039115,120]
[393433364,1762657028194,500.0,0.00039115,120]
[393433365,1762657028251,528.56112313,0.00039115,120]
[393433366,1762657028446,500.0,0.00039115,120]
[393433367,1762657028694,500.0,0.00039115,120]
[393433368,1762657028975,210.8996457,0.00039115,120]
[393433369,1762657029716,466.27538919,0.00039115,120]
[393433370,1762657031279,181.49942917,0.00039115,120]
[393433371,1762657036760,172.74976541,0.00039115,120]
[393433372,1762657039632,634.26485064,0.00039115,120]
[393433373,1762657039919,500.0,0.00039115,120]
[393433374,1762657040149,500.0,0.00039115,120]
[393433375,1762657040411,500.0,0.00039115,120]
[393433376,1762657040511,500.0,0.00039115,120]
[393433377,1762657040843,500.0,0.00039115,120]
[393433378,1762657040888,500.0,0.00039115,120]
[393433379,1762657040944,500.0,0.00039115,120]
[393433380,1762657040999,500.0,0.00039115,120]
[393433381,1762657041051,500.0,0.00039115,120]
[393433382,1762657041116,500.0,0.00039115,120]
[393433383,1762657041166,500.0,0.00039115,120]
[393433384,1762657041211,500.0,0.00039115,120]
[393433385,1762657041262,500.0,0.00039115,120]
[393433386,1762657041342,498.29970585,0.00039115,120]
[393433387,1762657041441,500.0,0.00039115,120]
[393433388,1762657041496,500.0,0.00039115,120]
[393433389,1762657041670,377.7182118,0.00039115,120]
[393433390,1762657041874,500.0,0.00039115,120]
[393433391,1762657041947,500.0,0.00039115,120]
[393433392,1762657042151,500.0,0.00039115,120]
[393433393,1762657042408,500.0,0.00039115,120]
[393433394,1762657042644,189.75592999,0.00039115,120]
[393433395,1762657044539,500.0,0.00039115,120]
[393433396,1762657044793,500.0,0.00039115,120]
[393433397,1762657045063,500.0,0.00039115,120]
[393433398,1762657045112,500.0,0.00039115,120]
[393433399,1762657045322,500.0,0.00039115,120]
[393433400,1762657045367,155.19238229,0.00039115,120]
[393433401,1762657045562,510.12649464,0.00039115,120]
[393433402,1762657049967,500.0,0.00039115,120]
[393433403,1762657050249,500.0,0.00039115,120]
[393433404,1762657050484,500.0,0.00039115,120]
[393433405,1762657050718,500.0,0.00039115,120]
[393433406,1762657051098,500.0,0.00039115,120]
[393433407,1762657051230,500.0,0.00039115,120]
[393433408,1762657051467,500.0,0.00039115,120]
[393433409,1762657051710,500.0,0.00039115,120]
[393433410,1762657051808,500.0,0.00039115,120]
[393433411,1762657051954,500.0,0.00039115,120]
[393433412,1762657052065,500.0,0.00039115,120]
[393433413,1762657052192,500.0,0.00039115,120]
[393433414,1762657052309,500.0,0.00039115,120]
[393433415,1762657052440,500.0,0.00039115,120]
[393433416,1762657052669,500.0,0.00039115,120]
[393433417,1762657052885,500.0,0.00039115,120]
[393433418,1762657052937,562.93405183,0.00039115,120]
[393433419,1762657053148,500.0,0.00039115,120]
[393433420,1762657053399,500.0,0.00039115,120]
[393433421,1762657053826,500.0,0.00039115,120]
[393433422,1762657053949,334.25462399,0.00039115,120]
[393433423,1762657060005,620.00680987,0.00039115,120]
[393433424,1762657064363,595.45008765,0.00039115,120]
[393433425,1762657066176,622.96472918,0.00039115,120]
[393433426,1762657066768,500.0,0.00039115,120]
[393433427,1762657067042,151.45903971,0.00039115,120]
[393433428,1762657070914,569.43512806,0.00039115,120]
[393433429,1762657072472,500.0,0.00039115,120]
[393433430,1762657072708,155.01254248,0.00039115,120]
[393433431,1762657074116,601.73080718,0.00039115,120]
[393433432,1762657074364,583.09410239,0.00039115,120]
[393433433,1762657083836,500.0,0.00039115,120]
[393433434,1762657084427,500.0,0.00039115,120]
[393433435,1762657084681,500.0,0.00039115,120]
[393433436,1762657084918,194.93585571,0.00039115,120]
[393433437,1762657088136,165.78775748,0.00039115,120]
[393433438,1762657091444,500.0,0.00039115,120]
[393433439,1762657091687,500.0,0.00039115,120]
[393433440,1762657091923,649.5328552,0.00039115,120]
[393433441,1762657096943,500.0,0.00039115,120]
[393433442,1762657097086,565.21381174,0.00039115,120]
[393433443,1762657097178,500.0,0.00039115,120]
[393433444,1762657097446,500.0,0.00039115,120]
[393433445,1762657097685,500.0,0.00039115,120]
[393433446,1762657097943,330.19255148,0.00039115,120]
[393433447,1762657100262,500.0,0.00039115,120]
[393433448,1762657100513,500.0,0.00039115,120]
[393433449,1762657100762,500.0,0.00039115,120]
[393433450,1762657101000,324.0473623,0.00039115,120]
[393433451,1762657102108,633.86710056,0.00039115,120]
[393433452,1762657104587,500.0,0.00039115,120]
[393433453,1762657104823,500.0,0.00039115,120]
[393433454,1762657105070,500.0,0.00039115,120]
[393433455,1762657105318,500.0,0.00039115,120]
[393433456,1762657105590,500.0,0.00039115,120]
[393433457,1762657105847,500.0,0.00039115,120]
[393433458,1762657106099,500.0,0.00039115,120]
[393433459,1762657106364,500.0,0.00039115,120]
[393433460,1762657106597,500.0,0.00039115,120]
[393433461,1762657106854,500.0,0.00039115,120]
[393433462,1762657107099,500.0,0.00039115,120]
[393433463,1762657107350,601.78359494,0.00039115,120]
[393433464,1762657109763,300.0,0.00016585,2]
[393433465,1762657110416,500.0,0.00039115,120]
[393433466,1762657110657,500.0,0.00039115,120]
[393433467,1762657110843,611.11127252,0.00039115,120]
[393433468,1762657110889,642.56218527,0.00039115,120]
[393433469,1762657119198,492.49188357,0.00039115,120]
[393433470,1762657121172,503.6171905,0.00039115,120]
[393433471,1762657123132,500.0,0.00039115,120]
[393433472,1762657123416,500.0,0.00039115,120]
[393433473,1762657123610,500.0,0.00039115,120]
[393433474,1762657123875,500.0,0.00039115,120]
[393433475,1762657124123,500.13408624,0.00039115,120]
[393433476,1762657135716,500.0,0.00039115,120]
[393433477,1762657135972,500.0,0.00039115,120]
[393433478,1762657136217,500.0,0.00039115,120]
[393433479,1762657136464,500.0,0.00039115,120]
[393433480,1762657136697,497.2422989,0.00039115,120]
[393433481,1762657140471,500.0,0.00039115,120]
[393433482,1762657140697,163.83036027,0.00039115,120]
[393433483,1762657143239,500.0,0.00039115,120]
[393433484,1762657143476,217.97804211,0.00039115,120]
[393433485,1762657155022,165.33770839,0.00039115,120]
[393433486,1762657157500,500.0,0.00039115,120]
[393433487,1762657157743,313.58191417,0.00039115,120]
[393433488,1762657158087,600.79737993,0.00039115,120]
[393433489,1762657172024,300.0,0.00016653,2]
[393433490,1762657177312,1000.0,0.00039115,120]
[393433491,1762657177541,1000.0,0.00039115,120]
[393433492,1762657177784,1000.0,0.00039115,120]
[393433493,1762657178055,1000.0,0.00039115,120]
[393433494,1762657178304,1000.0,0.00039115,120]
[393433495,1762657178546,170.40034864,0.00039115,120]
[393433496,1762657181949,500.0,0.00039115,120]
[393433497,1762657182001,561.21624103,0.00039115,120]
[393433498,1762657182222,500.0,0.00039115,120]
[393433499,1762657182458,500.0,0.00039115,120]
[393433500,1762657182695,500.0,0.00039115,120]
[393433501,1762657182942,500.0,0.00039115,120]
[393433502,1762657183175,500.0,0.00039115,120]
[393433503,1762657183425,500.0,0.00039115,120]
[393433504,1762657183659,500.0,0.00039115,120]
[393433505,1762657183896,500.0,0.00039124,120]
[393433506,1762657184120,500.0,0.00039124,120]
[393433507,1762657184386,500.0,0.00039124,120]
[393433508,1762657184656,500.0,0.00039124,120]
[393433509,1762657184888,500.0,0.00039124,120]
[393433510,1762657185528,500.0,0.00039124,120]
[393433511,1762657185580,500.0,0.00039124,120]
[393433512,1762657185630,500.0,0.00039124,120]
[393433513,1762657185877,500.0,0.00039124,120]
[393433514,1762657186165,500.0,0.00039124,120]
[393433515,1762657186401,257.40936898,0.00039124,120]
[393433516,1762657190076,500.0,0.00039124,120]
[393433517,1762657190320,500.0,0.00039124,120]
[393433518,1762657190578,604.1948913,0.00039124,120]
[393433519,1762657192700,500.0,0.00039124,120]
[393433520,1762657192958,500.0,0.00039124,120]
[393433521,1762657193236,434.91633764,0.00039124,120]
[393433522,1762657198321,500.0,0.00039124,120]
[393433523,1762657198564,308.55110098,0.00039124,120]
[393433524,1762657202871,515.26138859,0.00039124,120]
[393433525,1762657204174,500.0,0.00039124,120]
[393433526,1762657204598,500.0,0.00039124,120]
[393433527,1762657204651,500.0,0.00039124,120]
[393433528,1762657204713,500.0,0.00039124,120]
[393433529,1762657204768,648.76,0.00039124,120]
[393433530,1762657204908,398.59,0.00039124,120]
[393433531,1762657206771,569.82237082,0.00039124,120]
[393433532,1762657209338,500.0,0.00039124,120]
[393433533,1762657209591,500.0,0.00039124,120]
[393433534,1762657209874,500.0,0.00039124,120]
[393433535,1762657210138,500.0,0.00039124,120]
[393433536,1762657210402,500.0,0.00039124,120]
[393433537,1762657210644,500.0,0.00039124,120]
[393433538,1762657210909,500.0,0.00039124,120]
[393433539,1762657211162,500.0,0.00039124,120]
[393433540,1762657211413,500.0,0.00039124,120]
[393433541,1762657211657,500.0,0.00039124,120]
[393433542,1762657211932,500.0,0.00039124,120]
[393433543,1762657212160,263.67,0.00039124,120]
[393433544,1762657216604,971.81339525,0.000166,2]
[393433545,1762657217848,500.0,0.00039124,120]
[393433546,1762657218116,500.0,0.00039124,120]
[393433547,1762657218347,500.0,0.00039124,120]
[393433548,1762657218630,204.33397272,0.00039124,120]
[393433549,1762657222535,500.0,0.00039124,120]
[393433550,1762657222778,500.0,0.00039124,120]
[393433551,1762657223010,384.30275925,0.00039124,120]
[393433552,1762657224985,500.0,0.00039124,120]
[393433553,1762657225031,965.30125757,0.00039124,120]
[393433554,1762657225256,278.02,0.00039124,120]
[393433555,1762657226943,476.96059119,0.00039124,120]
[393433556,1762657226993,500.0,0.00039124,120]
[393433557,1762657227067,500.0,0.00039124,120]
[393433558,1762657227269,500.0,0.00039124,120]
[393433559,1762657227508,542.24622984,0.00039124,120]
[393433560,1762657228456,600.0,0.00039124,120]
[393433561,1762657228614,500.0,0.00039124,120]
[393433562,1762657228864,500.0,0.00039124,120]
[393433563,1762657229134,361.38,0.00039124,120]
[393433564,1762657231042,500.0,0.00039124,120]
[393433565,1762657231279,500.0,0.00039124,120]
[393433566,1762657231808,500.0,0.00039124,120]
[393433567,1762657232050,362.67,0.00039124,120]
[393433568,1762657232107,500.0,0.00039124,120]
[393433569,1762657232322,500.0,0.00039124,120]
[393433570,1762657232598,500.0,0.00039124,120]
[393433571,1762657232824,329.52446248,0.00039124,120]
[393433572,1762657233593,181.72760143,0.00039124,120]
[393433573,1762657234481,500.0,0.00039124,120]
[393433574,1762657234723,500.0,0.00039124,120]
[393433575,1762657234956,443.46857327,0.00039124,120]
[393433576,1762657235473,567.47,0.00039124,120]
[393433577,1762657237664,184.65146,0.00039124,60]
[393433578,1762657239395,500.0,0.00039124,120]
[393433579,1762657239483,634.73939743,0.00039124,120]
[393433580,1762657239640,500.0,0.00039124,120]
[393433581,1762657239896,377.95048762,0.00039124,120]
[393433582,1762657240699,500.0,0.00039124,120]
[393433583,1762657240932,500.0,0.00039124,120]
[393433584,1762657241551,283.82131587,0.00039124,120]
[393433585,1762657243529,500.0,0.00039124,120]
[393433586,1762657243791,500.0,0.00039124,120]
[393433587,1762657243953,500.0,0.00039124,120]
[393433588,1762657244055,500.0,0.00039124,120]
[393433589,1762657244185,500.0,0.00039124,120]
[393433590,1762657244299,261.07308497,0.00039124,120]
[393433591,1762657244407,621.12611614,0.00039124,120]
[393433592,1762657246480,500.0,0.00039124,120]
[393433593,1762657246781,500.0,0.00039124,120]
[393433594,1762657247030,500.0,0.00039124,120]
[393433595,1762657247654,500.0,0.00039124,120]
[393433596,1762657247717,431.19,0.00039124,120]
[393433597,1762657252442,500.0,0.00039124,120]
[393433598,1762657253188,596.79082347,0.00039124,120]
[393433599,1762657253316,500.0,0.00039124,120]
[393433600,1762657253474,342.86059046,0.00039124,120]
[393433601,1762657253585,464.25311789,0.00039124,120]
[393433602,1762657253757,500.0,0.00039124,120]
[393433603,1762657253998,174.26084798,0.00039124,120]
[393433604,1762657254782,500.0,0.00039124,120]
[393433605,1762657255016,500.0,0.00039124,120]
[393433606,1762657255244,500.0,0.00039124,120]
[393433607,1762657255479,500.0,0.00039124,120]
[393433608,1762657255722,598.06746215,0.00039124,120]
[393433609,1762657257184,500.0,0.00039124,120]
[393433610,1762657257430,500.0,0.00039124,120]
[393433611,1762657257870,545.66243051,0.00039124,120]
[393433612,1762657257913,565.78475942,0.00039124,120]
[393433613,1762657258384,355.70395787,0.00039124,120]
[393433614,1762657260632,500.0,0.00039124,120]
[393433615,1762657260875,500.0,0.00039124,120]
[393433616,1762657261086,500.0,0.00039124,120]
[393433617,1762657261133,500.0,0.00039124,120]
[393433618,1762657261331,500.0,0.00039124,120]
[393433619,1762657261381,199.88020297,0.00039124,120]
[393433620,1762657261576,500.0,0.00039124,120]
[393433621,1762657261862,500.0,0.00039124,120]